Departmental family,Entity,Date Paid,Expense type,Expense Area ,Supplier,Transaction Number, Amount ,Description,Supplier Type,Expenditure Type
UK Statistics Authority,Office For National Statistics,01/05/2019,Exp - Purchase Of Goods/Services - Contractors,Business Change Support,Mango Solutions,134692," 1,800.00 ", Information Mangement Services,SME,Programme Exp
UK Statistics Authority,Office For National Statistics,01/05/2019,Exp - Purchase Of Goods/Services - Contractors,Business Indicators And B O P,Mango Solutions,134692," 40,950.00 ", Information Mangement Services,SME,Programme Exp
UK Statistics Authority,Office For National Statistics,01/05/2019,Exp - Purchase Of Goods/Services - It Contractual Services,Tech Delivery Data As A Platform,Mango Solutions,134692," 33,345.00 ", Information Mangement Services,SME,Programme Exp
UK Statistics Authority,Office For National Statistics,01/05/2019,Other Goods And Services,Overseas Development,Foreign & Commonwealth Office,134698," 64,640.90 ", Overseas Development Staff Cost,Large,Programme Exp
UK Statistics Authority,Office For National Statistics,01/05/2019,Travel And Subsistence,Cwt Trainline,Corporate Travel Management ,134704," 57,301.74 ", Travel and Accommodation Booking Service ,SME,Programme Exp
UK Statistics Authority,Office For National Statistics,01/05/2019,Exp - Purchase Of Goods/Services - It Contractual Services,Digital Publishing,Methods Business & Digital Technology Ltd,134708," 29,700.00 ", Information Management Services ,Large,Programme Exp
UK Statistics Authority,Office For National Statistics,01/05/2019,Exp - Purchase Of Goods/Services - It Contractual Services,N A Coordination,Methods Business & Digital Technology Ltd,134708," 18,450.00 ", Information Management Services ,Large,Programme Exp
UK Statistics Authority,Office For National Statistics,01/05/2019,Exp - Purchase Of Goods/Services - It Contractual Services,Digital Delivery,Methods Business & Digital Technology Ltd,134708," 684,885.00 ", Information Management Services ,Large,Programme Exp
UK Statistics Authority,Office For National Statistics,01/05/2019,Exp - Purchase Of Goods/Services - It Contractual Services,Digital Delivery,Methods Business & Digital Technology Ltd,134708," 3,600.00 ", Information Management Services ,Large,Programme Exp
UK Statistics Authority,Office For National Statistics,01/05/2019,Exp - Purchase Of Goods And Services Consultants,Data Architecture,Deloitte,134711," 51,422.40 ", Census Information Management Service,Large,Programme Exp
UK Statistics Authority,Office For National Statistics,01/05/2019,Exp - Purchase Of Goods/Services - Contractors,Business Architecture,Parity Resources Limited,134714," 11,021.76 ", Information Management Services,Large,Programme Exp
UK Statistics Authority,Office For National Statistics,01/05/2019,Exp - Purchase Of Goods/Services - Contractors,Operations,Parity Resources Limited,134714," 16,020.00 ", Information Management Services,Large,Programme Exp
UK Statistics Authority,Office For National Statistics,01/05/2019,Exp - Purchase Of Goods/Services - Contractors,Digital Publishing,Parity Resources Limited,134714," 12,303.36 ", Information Management Services,Large,Programme Exp
UK Statistics Authority,Office For National Statistics,01/05/2019,Exp - Short-Term Contract & Agency Staff - Full Cost,Recruitment,Parity Resources Limited,134714, 676.76 , Information Management Services,Large,Programme Exp
UK Statistics Authority,Office For National Statistics,01/05/2019,Exp - Non IT Contractual Payments,Data Collection Service,Leidos Innovations UK Limited,134721," 2,307,183.94 ",Cenus Questionaire Management Services,Large,Programme Exp
UK Statistics Authority,Office For National Statistics,01/05/2019,"Ict Outsourcing, Maintenance And Support",It Operations,FlyForm Ltd,134723," 236,520.00 ",Information Management Services,SME,Programme Exp
UK Statistics Authority,Office For National Statistics,02/05/2019,Exp - Purchase Of Goods/Services - Contractors,Senior Management Team Design,La International,135079," 7,048.44 ", Information Management Services ,SME,Programme Exp
UK Statistics Authority,Office For National Statistics,02/05/2019,Exp - Purchase Of Goods/Services - Contractors,Stakeholder Engagement And Comms,La International,135079," 5,767.75 ", Information Management Services ,SME,Programme Exp
UK Statistics Authority,Office For National Statistics,02/05/2019,Exp - Purchase Of Goods/Services - Contractors,Business Architecture,La International,135079," 8,650.38 ", Information Management Services ,SME,Programme Exp
UK Statistics Authority,Office For National Statistics,02/05/2019,Exp - Purchase Of Goods/Services - Contractors,Testing,La International,135079," 6,664.01 ", Information Management Services ,SME,Programme Exp
UK Statistics Authority,Office For National Statistics,02/05/2019,Exp - Purchase Of Goods/Services - Contractors,Business Indicators And B O P,La International,135079," 9,803.79 ", Information Management Services ,SME,Programme Exp
UK Statistics Authority,Office For National Statistics,02/05/2019,Exp - Purchase Of Goods/Services - Contractors,Tech Delivery Srs,La International,135079," 3,588.30 ", Information Management Services ,SME,Programme Exp
UK Statistics Authority,Office For National Statistics,02/05/2019,Exp - Purchase Of Goods/Services - Contractors,Tech Delivery Legacy Sp,La International,135079," 2,896.50 ", Information Management Services ,SME,Programme Exp
UK Statistics Authority,Office For National Statistics,02/05/2019,Exp - Purchase Of Goods/Services - Contractors,It Applications,La International,135079," 8,970.86 ", Information Management Services ,SME,Programme Exp
UK Statistics Authority,Office For National Statistics,02/05/2019,Exp - Purchase Of Goods/Services - Contractors,Digital Delivery,La International,135079," 2,870.64 ", Information Management Services ,SME,Programme Exp
UK Statistics Authority,Office For National Statistics,02/05/2019,Exp - Purchase Of Goods/Services - Contractors,Data As A Service,La International,135079," 7,176.62 ", Information Management Services ,SME,Programme Exp
UK Statistics Authority,Office For National Statistics,02/05/2019,Software Licences At Cost - Additions,Digital Delivery,Insight Direct,135084," 5,016.36 ", Information Management Services ,Large,Capital Expenditure
UK Statistics Authority,Office For National Statistics,02/05/2019,"Ict Outsourcing, Maintenance And Support",Survey Processing Centre,Insight Direct,135084," 81,269.94 ", Information Management Services ,Large,Programme Exp
UK Statistics Authority,Office For National Statistics,02/05/2019,"Ict Outsourcing, Maintenance And Support",Digital Publishing,E Synergy Solutions,135094, 363.72 , Information Management Services ,SME,Programme Exp
UK Statistics Authority,Office For National Statistics,02/05/2019,Exp - Purchase Of Goods/Services - It Contractual Services,Digital Publishing,E Synergy Solutions,135094," 12,600.00 ", Information Management Services ,SME,Programme Exp
UK Statistics Authority,Office For National Statistics,02/05/2019,Exp - Purchase Of Goods/Services - It Contractual Services,Survey Design And Assurance,E Synergy Solutions,135094," 86,526.04 ", Information Management Services ,SME,Programme Exp
UK Statistics Authority,Office For National Statistics,02/05/2019,Exp - Purchase Of Goods/Services - It Contractual Services,Tech Delivery Legacy Sp,E Synergy Solutions,135094," 51,030.00 ", Information Management Services ,SME,Programme Exp
UK Statistics Authority,Office For National Statistics,02/05/2019,Exp - Purchase Of Goods/Services - It Contractual Services,Tech Delivery Legacy Sp,E Synergy Solutions,135094," 16,380.00 ", Information Management Services ,SME,Programme Exp
UK Statistics Authority,Office For National Statistics,02/05/2019,Exp - Purchase Of Goods/Services - It Contractual Services,Tech Delivery Data As A Platform,E Synergy Solutions,135094," 114,732.00 ", Information Management Services ,SME,Programme Exp
UK Statistics Authority,Office For National Statistics,02/05/2019,Exp - Purchase Of Goods/Services - It Contractual Services,Tech Delivery Data As A Platform,E Synergy Solutions,135094," 14,112.00 ", Information Management Services ,SME,Programme Exp
UK Statistics Authority,Office For National Statistics,02/05/2019,Exp - Purchase Of Goods/Services - It Contractual Services,Tech Delivery Next Gen It And Infrastructure,E Synergy Solutions,135094," 18,570.00 ", Information Management Services ,SME,Programme Exp
UK Statistics Authority,Office For National Statistics,02/05/2019,"Ict Outsourcing, Maintenance And Support",It Operations,E Synergy Solutions,135094," 15,120.00 ", Information Management Services ,SME,Programme Exp
UK Statistics Authority,Office For National Statistics,02/05/2019,Exp - Purchase Of Goods/Services - It Contractual Services,It Operations,E Synergy Solutions,135094," 77,487.00 ", Information Management Services ,SME,Programme Exp
UK Statistics Authority,Office For National Statistics,02/05/2019,Exp - Purchase Of Goods/Services - It Contractual Services,Office Of Chief Data And Information,E Synergy Solutions,135094," 21,423.17 ", Information Management Services ,SME,Programme Exp
UK Statistics Authority,Office For National Statistics,02/05/2019,Exp - Permanent Uk Staff - Prp Voucher Payments,Ons Corporate Funds,Park Retail Ltd,135096," 5,873.75 ", Survey Incentive Vouchers,Large,Programme Exp
UK Statistics Authority,Office For National Statistics,02/05/2019,Exp - Purchase Of Goods/Services - Incentive Payments,Interviewer Support,Park Retail Ltd,135096," 10,631.93 ", Survey Incentive Vouchers,Large,Programme Exp
UK Statistics Authority,Office For National Statistics,02/05/2019,Exp - Purchase Of Goods/Services - Incentive Payments,Interviewer Support,Park Retail Ltd,135096," 1,966.19 ", Survey Incentive Vouchers,Large,Programme Exp
UK Statistics Authority,Office For National Statistics,02/05/2019,Exp - Purchase Of Goods/Services - Incentive Payments,Survey Management,Park Retail Ltd,135096," 7,549.25 ", Survey Incentive Vouchers,Large,Programme Exp
UK Statistics Authority,Office For National Statistics,02/05/2019,Special Payments,Census Ccs Data Collection,Adecco UK Limited,135100," 30,600.00 "," Census Recruitment, Training and Payroll Services",SME,Programme Exp
UK Statistics Authority,Office For National Statistics,02/05/2019,Exp - Purchase Of Goods And Services Consultants,Tech Delivery Legacy Sp,Actian Europe Limited,135101," 40,920.00 ", Information Management Services ,SME,Programme Exp
UK Statistics Authority,Office For National Statistics,02/05/2019,Fm Contract Payments,Mitie Payments,Vinci Construction UK Limited,135104," 316,129.62 ", Facility Management Services,Large,Programme Exp
UK Statistics Authority,Office For National Statistics,02/05/2019,Travel And Subsistence,Cwt Trainline,Corporate Travel Management ,135110," 36,094.28 ", Travel and Accommodation Booking Service ,SME,Programme Exp
UK Statistics Authority,Office For National Statistics,02/05/2019,It (Owned) At Cost - Additions,Tech Delivery Next Gen It And Infrastructure,Cdw Limited,135111," 514,895.62 ", Fixed Asset Computer Additions ,Large,Capital Expenditure
UK Statistics Authority,Office For National Statistics,02/05/2019,It Management And Change,Tech Delivery Next Gen It And Infrastructure,Cdw Limited,135111," 18,627.41 ", Maintenance and Support ,Large,Programme Exp
UK Statistics Authority,Office For National Statistics,02/05/2019,"Ict Outsourcing, Maintenance And Support",It Operations,Cdw Limited,135111," 26,678.42 ", Maintenance and Support ,Large,Programme Exp
UK Statistics Authority,Office For National Statistics,02/05/2019,Exp - Purchase Of Goods/Services - It Contractual Services,Digital Delivery,Methods Business & Digital Technology Ltd,135113," 87,015.00 ", Information Management Services ,Large,Programme Exp
UK Statistics Authority,Office For National Statistics,02/05/2019,Exp - Purchase Of Goods/Services - It Contractual Services,Digital Delivery,Methods Business & Digital Technology Ltd,135113," 3,600.00 ", Information Management Services ,Large,Programme Exp
UK Statistics Authority,Office For National Statistics,02/05/2019,Exp - Purchase Of Goods/Services - It Contractual Services,Digital Delivery,Methods Business & Digital Technology Ltd,135113," 14,040.00 ", Information Management Services ,Large,Programme Exp
UK Statistics Authority,Office For National Statistics,03/05/2019,Surveys,Census & Soc Methodology Dd,University of Southampton,135115," 33,783.00 ", Information Management Services ,SME,Programme Exp
UK Statistics Authority,Office For National Statistics,03/05/2019,"Ict Outsourcing, Maintenance And Support",It Operations,Equiniti Limited,135117," 47,212.80 ", Information Management Services ,Large,Programme Exp
UK Statistics Authority,Office For National Statistics,03/05/2019,Exp - Purchase Of Goods/Services - It Contractual Services,Dst Reapportioning,Qa Ltd,135122," 239,760.00 ", Information Management Services,Large,Programme Exp
UK Statistics Authority,Office For National Statistics,03/05/2019,Exp - Purchase Of Goods/Services - It Contractual Services,It Applications,Qa Ltd,135122," 16,380.00 ", Information Management Services,Large,Programme Exp
UK Statistics Authority,Office For National Statistics,03/05/2019,Exp - Purchase Of Goods/Services - It Contractual Services,It Operations,Qa Ltd,135122," 191,196.00 ", Information Management Services,Large,Programme Exp
UK Statistics Authority,Office For National Statistics,03/05/2019,Training & Development,Office Of Chief Data And Information,Qa Ltd,135122," 76,800.00 ", Information Management Services,Large,Programme Exp
UK Statistics Authority,Office For National Statistics,07/05/2019,"Ict Outsourcing, Maintenance And Support",It Operations,Oracle Corporation UK Ltd,135363," 38,743.80 ", License and Software Support,Large,Programme Exp
UK Statistics Authority,Office For National Statistics,07/05/2019,"Ict Outsourcing, Maintenance And Support",It Operations,Oracle Corporation UK Ltd,135364," 461,587.74 ", License and Software Support,Large,Programme Exp
UK Statistics Authority,Office For National Statistics,07/05/2019,Exp - Purchase Of Goods/Services - Contractors,Testing,Certes Computing Ltd,135368," 18,241.44 ", Information Management Services ,SME,Programme Exp
UK Statistics Authority,Office For National Statistics,07/05/2019,Exp - Purchase Of Goods/Services - Contractors,Researcher Support And Data Access ,Certes Computing Ltd,135368," 12,958.70 ", Information Management Services ,SME,Programme Exp
UK Statistics Authority,Office For National Statistics,07/05/2019,It Management And Change,Digital Delivery,CTS (Cloud Technology Solutions Ltd),135377," 42,000.00 ", Google Cloud Platform,Large,Programme Exp
UK Statistics Authority,Office For National Statistics,07/05/2019,"Ict Outsourcing, Maintenance And Support",Office Of Chief Data And Information,Other Media Ltd,135378," 30,000.00 ", United Nations Global Platform  ,Large,Programme Exp
UK Statistics Authority,Office For National Statistics,07/05/2019,Other Goods And Services,Tech Delivery Legacy Sp,Cysure Limited,135379," 94,284.50 ", Information Management Services,SME,Programme Exp
UK Statistics Authority,Office For National Statistics,08/05/2019,Training & Development,Strategy And Engagement,Capita Business Services Ltd,135752," 5,030.14 ", APMG Change Management Foundation and Practitioner course�,Large,Programme Exp
UK Statistics Authority,Office For National Statistics,08/05/2019,Training & Development,Office Of Chief Data And Information,Capita Business Services Ltd,135752," 22,231.66 ", APMG Change Management Foundation and Practitioner course�,Large,Programme Exp
UK Statistics Authority,Office For National Statistics,08/05/2019,Exp - Purchase Of Goods/Services - Contractors,Survey Design And Assurance,Medley Business Solutions Ltd,135755, 326.04 , Information Management Services,Large,Programme Exp
UK Statistics Authority,Office For National Statistics,08/05/2019,Exp - Purchase Of Goods/Services - It Contractual Services,Survey Design And Assurance,Medley Business Solutions Ltd,135755," 19,008.00 ", Information Management Services,Large,Programme Exp
UK Statistics Authority,Office For National Statistics,08/05/2019,Exp - Purchase Of Goods/Services - It Contractual Services,Survey Design And Assurance,Medley Business Solutions Ltd,135755," 14,731.20 ", Information Management Services,Large,Programme Exp
UK Statistics Authority,Office For National Statistics,08/05/2019,Exp - Purchase Of Goods/Services - Contractor Travel,Survey Design And Assurance,Medley Business Solutions Ltd,135755, 463.84 , Information Management Services,Large,Programme Exp
UK Statistics Authority,Office For National Statistics,08/05/2019,Fixtures & Fittings At Cost - Additions,Economic Statistics Architecture Business Change,Gresham Office Furniture Limited,135770," 31,380.72 ", Smart Working Furniture  ,SME,Capital Expenditure
UK Statistics Authority,Office For National Statistics,08/05/2019,Exp - Purchase Of Goods/Services - Accommodation & Bldng Management - Miscellaneous Minor Works,Economic Statistics Architecture Business Change,Gresham Office Furniture Limited,135770, 780.00 , Smart Working Furniture  ,SME,Programme Exp
UK Statistics Authority,Office For National Statistics,09/05/2019,"Ict Outsourcing, Maintenance And Support",Tech Delivery Next Gen It And Infrastructure,Cdw Limited,135776," 79,404.00 ", Fixed Asset Computer Additions ,Large,Programme Exp
UK Statistics Authority,Office For National Statistics,09/05/2019,"Ict Outsourcing, Maintenance And Support",People Solutions,People Asset Management Ltd,135788," 40,673.88 ", Occupation Health and Employee Assistance Programme�,SME,Programme Exp
UK Statistics Authority,Office For National Statistics,10/05/2019,Surveys,Prices Division,Kantar UK Ltd,136228," 195,089.20 ", Statistical Services,Large,Programme Exp
UK Statistics Authority,Office For National Statistics,10/05/2019,"Ict Outsourcing, Maintenance And Support",It Operations,Oracle Corporation UK Ltd,136231," 833,185.04 ", License and Software Support,Large,Programme Exp
UK Statistics Authority,Office For National Statistics,10/05/2019,Travel And Subsistence,Cwt Trainline,Corporate Travel Management ,136238," 72,463.04 ", Travel and Accommodation Booking Service ,SME,Programme Exp
UK Statistics Authority,Office For National Statistics,10/05/2019,Exp - Purchase Of Goods/Services - Contractors,Security Advisory,La International,136242," 9,867.82 ", Information Management Services ,SME,Programme Exp
UK Statistics Authority,Office For National Statistics,10/05/2019,Exp - Purchase Of Goods/Services - Contractors,Digital Delivery,La International,136242," 12,559.18 ", Information Management Services ,SME,Programme Exp
UK Statistics Authority,Office For National Statistics,10/05/2019,Exp - Purchase Of Goods/Services - Contractors,Digital Delivery,La International,136242," 4,485.42 ", Information Management Services ,SME,Programme Exp
UK Statistics Authority,Office For National Statistics,13/05/2019,Stationery,Lodgecard,Royal Bank of Scotland,136249," 6,099.70 ", Multiple Procurement Card Stationery Purchases  ,Large,Programme Exp
UK Statistics Authority,Office For National Statistics,13/05/2019,Other Goods And Services,Gpc,Royal Bank of Scotland,136249," 45,630.95 ", Multiple Procurement Card Purchases  ,Large,Programme Exp
UK Statistics Authority,Office For National Statistics,13/05/2019,Exp - Purchase Of Goods/Services - Contractors,Business Architecture,Parity Resources Limited,136250," 7,728.19 ", Information Management Services,Large,Programme Exp
UK Statistics Authority,Office For National Statistics,13/05/2019,Exp - Purchase Of Goods/Services - Contractors,Testing,Parity Resources Limited,136250," 12,687.84 ", Information Management Services,Large,Programme Exp
UK Statistics Authority,Office For National Statistics,13/05/2019,Exp - Short-Term Contract & Agency Staff - Full Cost,Programme Delivery,Parity Resources Limited,136250," 1,545.83 ", Information Management Services,Large,Programme Exp
UK Statistics Authority,Office For National Statistics,13/05/2019,Exp - Purchase Of Goods/Services - Contractors,Programme Delivery,Parity Resources Limited,136250," 8,811.00 ", Information Management Services,Large,Programme Exp
UK Statistics Authority,Office For National Statistics,13/05/2019,Exp - Short-Term Contract & Agency Staff - Full Cost,Strategy And Engagement,Parity Resources Limited,136250, 772.92 , Information Management Services,Large,Programme Exp
UK Statistics Authority,Office For National Statistics,13/05/2019,Exp - Purchase Of Goods/Services - Contractors,Tech Delivery Legacy Sp,Parity Resources Limited,136250," 1,666.08 ", Information Management Services,Large,Programme Exp
UK Statistics Authority,Office For National Statistics,13/05/2019,Exp - Purchase Of Goods/Services - Contractors,Digital Delivery,Parity Resources Limited,136250," 5,741.57 ", Information Management Services,Large,Programme Exp
UK Statistics Authority,Office For National Statistics,13/05/2019,Exp - Purchase Of Goods/Services - It Contractual Services,Digital Delivery,Parity Resources Limited,136250," 9,804.24 ", Information Management Services,Large,Programme Exp
UK Statistics Authority,Office For National Statistics,13/05/2019,Exp - Short-Term Contract & Agency Staff - Full Cost,Survey Processing Centre,Parity Resources Limited,136250," 3,390.97 ", Information Management Services,Large,Programme Exp
UK Statistics Authority,Office For National Statistics,13/05/2019,Exp - Purchase Of Goods And Services Consultants,Senior Management Team Design,Deloitte,136261," 89,138.40 ", Census Information Management Service,Large,Programme Exp
UK Statistics Authority,Office For National Statistics,13/05/2019,Telecoms,It Operations,Bt Global Services,136264," 25,152.00 ", BT Cloud Services,Large,Programme Exp
UK Statistics Authority,Office For National Statistics,13/05/2019,Telecoms,Divisional Strategy And Support,Bt Global Services,136264," 7,885.40 ", BT Cloud Services,Large,Programme Exp
UK Statistics Authority,Office For National Statistics,14/05/2019,Exp - Purchase Of Goods/Services - Contractors,Testing,La International,136605," 11,661.98 ", Information Management Services ,SME,Programme Exp
UK Statistics Authority,Office For National Statistics,14/05/2019,Exp - Purchase Of Goods/Services - Contractors,Survey Design And Assurance,La International,136605," 1,281.56 ", Information Management Services ,SME,Programme Exp
UK Statistics Authority,Office For National Statistics,14/05/2019,Exp - Purchase Of Goods/Services - Contractors,Strategy And Architecture,La International,136605, 961.16 , Information Management Services ,SME,Programme Exp
UK Statistics Authority,Office For National Statistics,14/05/2019,Exp - Purchase Of Goods/Services - Contractors,Tech Delivery Legacy Sp,La International,136605," 2,245.20 ", Information Management Services ,SME,Programme Exp
UK Statistics Authority,Office For National Statistics,14/05/2019,Exp - Purchase Of Goods/Services - Contractors,Tech Delivery Data As A Platform,La International,136605," 3,588.30 ", Information Management Services ,SME,Programme Exp
UK Statistics Authority,Office For National Statistics,14/05/2019,Exp - Purchase Of Goods/Services - Contractors,It Applications,La International,136605," 8,517.00 ", Information Management Services ,SME,Programme Exp
UK Statistics Authority,Office For National Statistics,14/05/2019,Exp - Purchase Of Goods/Services - Contractors,Digital Delivery,La International,136605," 10,764.90 ", Information Management Services ,SME,Programme Exp
UK Statistics Authority,Office For National Statistics,14/05/2019,Exp - Purchase Of Goods/Services - Contractors,Digital Delivery,La International,136605," 19,376.82 ", Information Management Services ,SME,Programme Exp
UK Statistics Authority,Office For National Statistics,14/05/2019,Exp - Purchase Of Goods/Services - Contractors,Digital Delivery,La International,136605," 6,343.60 ", Information Management Services ,SME,Programme Exp
UK Statistics Authority,Office For National Statistics,14/05/2019,Capital Major Works >25K,Property Newport,Paramount Office Interiors Ltd,136607," 15,724.10 ", Major Works Newport,SME,Capital Expenditure
UK Statistics Authority,Office For National Statistics,14/05/2019,Major Works Over 25K,Property Newport,Paramount Office Interiors Ltd,136607," 36,689.57 ", Major Works Newport,SME,Programme Exp
UK Statistics Authority,Office For National Statistics,14/05/2019,Exp - Purchase Of Goods/Services - Contractors,Business Architecture,Parity Resources Limited,136608," 3,588.48 ", Information Management Services,Large,Programme Exp
UK Statistics Authority,Office For National Statistics,14/05/2019,Exp - Purchase Of Goods And Services Consultants,Programme Delivery,Parity Resources Limited,136608," 2,563.20 ", Information Management Services,Large,Programme Exp
UK Statistics Authority,Office For National Statistics,14/05/2019,Exp - Purchase Of Goods/Services - Contractors,Productivity Innovation Engagement And Research,Parity Resources Limited,136608," 9,842.40 ", Information Management Services,Large,Programme Exp
UK Statistics Authority,Office For National Statistics,14/05/2019,Exp - Short-Term Contract & Agency Staff - Full Cost,Recruitment,Parity Resources Limited,136608," 2,120.54 ", Information Management Services,Large,Programme Exp
UK Statistics Authority,Office For National Statistics,14/05/2019,Exp - Purchase Of Goods/Services - Contractors,Security Advisory,Parity Resources Limited,136608," 6,920.64 ", Information Management Services,Large,Programme Exp
UK Statistics Authority,Office For National Statistics,14/05/2019,Exp - Purchase Of Goods/Services - Contractors,Data Architecture,Parity Resources Limited,136608," 9,168.12 ", Information Management Services,Large,Programme Exp
UK Statistics Authority,Office For National Statistics,14/05/2019,Exp - Purchase Of Goods/Services - It Contractual Services,Strategy And Architecture,Parity Resources Limited,136608," 8,640.00 ", Information Management Services,Large,Programme Exp
UK Statistics Authority,Office For National Statistics,14/05/2019,Exp - Purchase Of Goods/Services - Contractors,Tech Delivery Legacy Sp,Parity Resources Limited,136608," 17,301.60 ", Information Management Services,Large,Programme Exp
UK Statistics Authority,Office For National Statistics,14/05/2019,Exp - Purchase Of Goods/Services - Contractors,It Applications,Parity Resources Limited,136608," 10,957.68 ", Information Management Services,Large,Programme Exp
UK Statistics Authority,Office For National Statistics,14/05/2019,Exp - Purchase Of Goods/Services - Contractors,It Operations,Parity Resources Limited,136608," 6,151.68 ", Information Management Services,Large,Programme Exp
UK Statistics Authority,Office For National Statistics,14/05/2019,Exp - Short-Term Contract & Agency Staff - Full Cost,Office Of Chief Data And Information,Parity Resources Limited,136608," 1,753.44 ", Information Management Services,Large,Programme Exp
UK Statistics Authority,Office For National Statistics,14/05/2019,Exp - Purchase Of Goods/Services - Contractors,Digital Delivery,Parity Resources Limited,136608," 9,330.05 ", Information Management Services,Large,Programme Exp
UK Statistics Authority,Office For National Statistics,14/05/2019,Exp - Purchase Of Goods/Services - Contractors,Digital Delivery,Parity Resources Limited,136608," 9,330.05 ", Information Management Services,Large,Programme Exp
UK Statistics Authority,Office For National Statistics,14/05/2019,Exp - Purchase Of Goods/Services - Contractors,Digital Delivery,Parity Resources Limited,136608," 12,918.53 ", Information Management Services,Large,Programme Exp
UK Statistics Authority,Office For National Statistics,14/05/2019,Exp - Purchase Of Goods/Services - Contractors,Digital Delivery,Parity Resources Limited,136608," 13,659.26 ", Information Management Services,Large,Programme Exp
UK Statistics Authority,Office For National Statistics,14/05/2019,Exp - Short-Term Contract & Agency Staff - Full Cost,Survey Processing Centre,Parity Resources Limited,136608," 1,556.98 ", Information Management Services,Large,Programme Exp
UK Statistics Authority,Office For National Statistics,14/05/2019,Stationery,Ask Business Services,APS Group,136609," 2,811.79 ", Stationery for External Reprographics,Large,Programme Exp
UK Statistics Authority,Office For National Statistics,14/05/2019,Stationery,Survey Processing Centre,APS Group,136609," 34,161.04 ", Stationery for External Reprographics,Large,Programme Exp
UK Statistics Authority,Office For National Statistics,15/05/2019,Travel And Subsistence,Cwt Trainline,Corporate Travel Management ,136619," 76,010.94 ", Travel and Accommodation Booking Service ,SME,Programme Exp
UK Statistics Authority,Office For National Statistics,15/05/2019,It (Owned) At Cost - Additions,Tech Delivery Next Gen It And Infrastructure,Phoenix Software Ltd,136632," 110,637.62 ", Software Installation Services,SME,Capital Expenditure
UK Statistics Authority,Office For National Statistics,20/05/2019,Exp - Purchase Of Goods/Services - Contractors,Gss Strategy Delivery,Concept Information Technology Ltd T/A Concept Resourcing,137287," 3,443.09 ", Information Management Services,Large,Programme Exp
UK Statistics Authority,Office For National Statistics,20/05/2019,Exp - Purchase Of Goods/Services - Contractors,Business Change Support,Concept Information Technology Ltd T/A Concept Resourcing,137287," 2,355.97 ", Information Management Services,Large,Programme Exp
UK Statistics Authority,Office For National Statistics,20/05/2019,Exp - Short-Term Contract & Agency Staff - Full Cost,Strategy And Engagement,Concept Information Technology Ltd T/A Concept Resourcing,137287," 3,577.75 ", Information Management Services,Large,Programme Exp
UK Statistics Authority,Office For National Statistics,20/05/2019,Exp - Short-Term Contract & Agency Staff - Full Cost,Finance,Concept Information Technology Ltd T/A Concept Resourcing,137287," 2,553.10 ", Information Management Services,Large,Programme Exp
UK Statistics Authority,Office For National Statistics,20/05/2019,Exp - Short-Term Contract & Agency Staff - Full Cost,Population Statistics Div,Concept Information Technology Ltd T/A Concept Resourcing,137287," 3,577.75 ", Information Management Services,Large,Programme Exp
UK Statistics Authority,Office For National Statistics,20/05/2019,Exp - Short-Term Contract & Agency Staff - Full Cost,Public Sector And Households,Concept Information Technology Ltd T/A Concept Resourcing,137287," 2,834.02 ", Information Management Services,Large,Programme Exp
UK Statistics Authority,Office For National Statistics,20/05/2019,Exp - Short-Term Contract & Agency Staff - Full Cost,Public Sector And Households,Concept Information Technology Ltd T/A Concept Resourcing,137287," 3,573.48 ", Information Management Services,Large,Programme Exp
UK Statistics Authority,Office For National Statistics,20/05/2019,Exp - Short-Term Contract & Agency Staff - Full Cost,Prices Division,Concept Information Technology Ltd T/A Concept Resourcing,137287," 2,588.60 ", Information Management Services,Large,Programme Exp
UK Statistics Authority,Office For National Statistics,20/05/2019,Exp - Short-Term Contract & Agency Staff - Full Cost,Prices Division,Concept Information Technology Ltd T/A Concept Resourcing,137287," 6,168.50 ", Information Management Services,Large,Programme Exp
UK Statistics Authority,Office For National Statistics,20/05/2019,Exp - Short-Term Contract & Agency Staff - Full Cost,Prices Division,Concept Information Technology Ltd T/A Concept Resourcing,137287," 3,578.02 ", Information Management Services,Large,Programme Exp
UK Statistics Authority,Office For National Statistics,20/05/2019,Exp - Short-Term Contract & Agency Staff - Full Cost,Business Outputs And Developments,Concept Information Technology Ltd T/A Concept Resourcing,137287," 2,332.16 ", Information Management Services,Large,Programme Exp
UK Statistics Authority,Office For National Statistics,20/05/2019,Exp - Short-Term Contract & Agency Staff - Full Cost,Business Outputs And Developments,Concept Information Technology Ltd T/A Concept Resourcing,137287," 3,555.55 ", Information Management Services,Large,Programme Exp
UK Statistics Authority,Office For National Statistics,20/05/2019,Exp - Short-Term Contract & Agency Staff - Full Cost,Labour Market,Concept Information Technology Ltd T/A Concept Resourcing,137287," 3,573.48 ", Information Management Services,Large,Programme Exp
UK Statistics Authority,Office For National Statistics,21/05/2019,Training & Development,Office Of Chief Data And Information,Armakuni Ltd,137447," 32,797.14 ", Training ,SME,Programme Exp
UK Statistics Authority,Office For National Statistics,23/05/2019,Major Works Over 25K,Property Titchfield,Vinci Construction UK Limited,137919," 12,484.76 ", Major works Titchfield,Large,Programme Exp
UK Statistics Authority,Office For National Statistics,23/05/2019,Fm Contract Payments,Mitie Payments,Vinci Construction UK Limited,137919," 47,819.80 ", Facility Management Services,Large,Programme Exp
UK Statistics Authority,Office For National Statistics,23/05/2019,Exp - Short-Term Contract & Agency Staff - Full Cost,Business Change Support,Concept Information Technology Ltd T/A Concept Resourcing,137921," 3,582.29 ", Information Management Services,Large,Programme Exp
UK Statistics Authority,Office For National Statistics,23/05/2019,Exp - Short-Term Contract & Agency Staff - Full Cost,Business Change Support,Concept Information Technology Ltd T/A Concept Resourcing,137921," 3,578.28 ", Information Management Services,Large,Programme Exp
UK Statistics Authority,Office For National Statistics,23/05/2019,Exp - Short-Term Contract & Agency Staff - Full Cost,Business Change Support,Concept Information Technology Ltd T/A Concept Resourcing,137921," 2,511.70 ", Information Management Services,Large,Programme Exp
UK Statistics Authority,Office For National Statistics,23/05/2019,Exp - Short-Term Contract & Agency Staff - Full Cost,Business Change Support,Concept Information Technology Ltd T/A Concept Resourcing,137921," 3,374.26 ", Information Management Services,Large,Programme Exp
UK Statistics Authority,Office For National Statistics,23/05/2019,Exp - Purchase Of Goods/Services - Contractors,Business Change Support,Concept Information Technology Ltd T/A Concept Resourcing,137921," 3,530.45 ", Information Management Services,Large,Programme Exp
UK Statistics Authority,Office For National Statistics,23/05/2019,Exp - Purchase Of Goods/Services - Contractors,Business Change Support,Concept Information Technology Ltd T/A Concept Resourcing,137921," 6,166.37 ", Information Management Services,Large,Programme Exp
UK Statistics Authority,Office For National Statistics,23/05/2019,Exp - Purchase Of Goods/Services - Contractors,Business Change Support,Concept Information Technology Ltd T/A Concept Resourcing,137921," 3,086.64 ", Information Management Services,Large,Programme Exp
UK Statistics Authority,Office For National Statistics,23/05/2019,Exp - Purchase Of Goods/Services - Contractors,Business Change Support,Concept Information Technology Ltd T/A Concept Resourcing,137921," 3,578.02 ", Information Management Services,Large,Programme Exp
UK Statistics Authority,Office For National Statistics,23/05/2019,Exp - Purchase Of Goods/Services - Contractors,N A Coordination,Concept Information Technology Ltd T/A Concept Resourcing,137921," 3,387.50 ", Information Management Services,Large,Programme Exp
UK Statistics Authority,Office For National Statistics,23/05/2019,Exp - Purchase Of Goods/Services - Contractors,N A Coordination,Concept Information Technology Ltd T/A Concept Resourcing,137921," 2,846.70 ", Information Management Services,Large,Programme Exp
UK Statistics Authority,Office For National Statistics,23/05/2019,Exp - Short-Term Contract & Agency Staff - Full Cost,Business Indicators And B O P,Concept Information Technology Ltd T/A Concept Resourcing,137921," 7,944.58 ", Information Management Services,Large,Programme Exp
UK Statistics Authority,Office For National Statistics,23/05/2019,Exp - Short-Term Contract & Agency Staff - Full Cost,Economic Analysis,Concept Information Technology Ltd T/A Concept Resourcing,137921," 3,578.02 ", Information Management Services,Large,Programme Exp
UK Statistics Authority,Office For National Statistics,23/05/2019,Exp - Short-Term Contract & Agency Staff - Full Cost,Economic Statistics Architecture Business Change,Concept Information Technology Ltd T/A Concept Resourcing,137921," 2,772.06 ", Information Management Services,Large,Programme Exp
UK Statistics Authority,Office For National Statistics,23/05/2019,Exp - Purchase Of Goods/Services - It Contractual Services,Survey Design And Assurance,Concept Information Technology Ltd T/A Concept Resourcing,137921," 3,000.00 ", Information Management Services,Large,Programme Exp
UK Statistics Authority,Office For National Statistics,23/05/2019,Exp - Purchase Of Goods/Services - It Contractual Services,Digital Delivery,Concept Information Technology Ltd T/A Concept Resourcing,137921," 11,448.00 ", Information Management Services,Large,Programme Exp
UK Statistics Authority,Office For National Statistics,23/05/2019,Exp - Purchase Of Goods/Services - Contractors,Business Statistics Transformation,Concept Information Technology Ltd T/A Concept Resourcing,137921," 3,573.71 ", Information Management Services,Large,Programme Exp
UK Statistics Authority,Office For National Statistics,23/05/2019,Exp - Purchase Of Goods/Services - Contractors,Testing,La International,137928," 22,555.02 ", Information Management Services ,SME,Programme Exp
UK Statistics Authority,Office For National Statistics,23/05/2019,Exp - Purchase Of Goods/Services - Contractors,Business Indicators And B O P,La International,137928," 5,895.08 ", Information Management Services ,SME,Programme Exp
UK Statistics Authority,Office For National Statistics,23/05/2019,Exp - Purchase Of Goods/Services - Contractors,Survey Design And Assurance,La International,137928," 5,126.20 ", Information Management Services ,SME,Programme Exp
UK Statistics Authority,Office For National Statistics,23/05/2019,Exp - Purchase Of Goods/Services - Contractors,Data Architecture,La International,137928," 5,247.90 ", Information Management Services ,SME,Programme Exp
UK Statistics Authority,Office For National Statistics,23/05/2019,Exp - Purchase Of Goods/Services - Contractors,Tech Delivery Srs,La International,137928," 6,458.94 ", Information Management Services ,SME,Programme Exp
UK Statistics Authority,Office For National Statistics,23/05/2019,Exp - Purchase Of Goods/Services - Contractors,Tech Delivery Legacy Sp,La International,137928," 9,416.10 ", Information Management Services ,SME,Programme Exp
UK Statistics Authority,Office For National Statistics,23/05/2019,Exp - Purchase Of Goods/Services - Contractors,Tech Delivery Data As A Platform,La International,137928," 2,870.64 ", Information Management Services ,SME,Programme Exp
UK Statistics Authority,Office For National Statistics,23/05/2019,Exp - Purchase Of Goods/Services - Contractors,It Applications,La International,137928," 15,160.56 ", Information Management Services ,SME,Programme Exp
UK Statistics Authority,Office For National Statistics,23/05/2019,Exp - Purchase Of Goods/Services - Contractors,Digital Delivery,La International,137928," 2,152.98 ", Information Management Services ,SME,Programme Exp
UK Statistics Authority,Office For National Statistics,23/05/2019,Exp - Purchase Of Goods/Services - Contractors,Digital Delivery,La International,137928," 21,581.14 ", Information Management Services ,SME,Programme Exp
UK Statistics Authority,Office For National Statistics,23/05/2019,Exp - Purchase Of Goods/Services - Contractors,Digital Delivery,La International,137928," 16,506.18 ", Information Management Services ,SME,Programme Exp
UK Statistics Authority,Office For National Statistics,23/05/2019,Exp - Purchase Of Goods/Services - Contractors,Data As A Service,La International,137928," 2,563.08 ", Information Management Services ,SME,Programme Exp
UK Statistics Authority,Office For National Statistics,23/05/2019,"Ict Outsourcing, Maintenance And Support",It Operations,Bytes Software Services Ltd,137934," 100,698.25 ", Plain and Printed Lanyards for Field Force Officers,Large,Programme Exp
UK Statistics Authority,Office For National Statistics,24/05/2019,"Ict Outsourcing, Maintenance And Support",It Operations,Crown Hosting Data Centres Limited,138232," 16,507.33 ", Crown Hosted Data Centre,SME,Programme Exp
UK Statistics Authority,Office For National Statistics,24/05/2019,It Management And Change,It Operations,Crown Hosting Data Centres Limited,138232," 86,106.26 ", Crown Hosted Data Centre,SME,Programme Exp
UK Statistics Authority,Office For National Statistics,24/05/2019,Exp - Purchase Of Goods/Services - Contractors,Business Indicators And B O P,Mango Solutions,138234," 64,590.00 ", Information Mangement Services,SME,Programme Exp
UK Statistics Authority,Office For National Statistics,24/05/2019,Exp - Purchase Of Goods/Services - It Contractual Services,Tech Delivery Data As A Platform,Mango Solutions,138234," 44,460.00 ", Information Mangement Services,SME,Programme Exp
UK Statistics Authority,Office For National Statistics,24/05/2019,Exp - Purchase Of Goods/Services - It Contractual Services,Dst Reapportioning,E Synergy Solutions,138236," 150,054.00 ", Information Management Services ,SME,Programme Exp
UK Statistics Authority,Office For National Statistics,24/05/2019,Exp - Purchase Of Goods/Services - It Contractual Services,Cdio Ungp,E Synergy Solutions,138236," 34,200.00 ", Information Management Services ,SME,Programme Exp
UK Statistics Authority,Office For National Statistics,24/05/2019,Exp - Purchase Of Goods/Services - Other Ict Costs Software,Finance,Scc,138240," 154,286.88 ", Oracle Cloud and HCM Licenses,Large,Programme Exp,,,,Oracle Cloud and HCM Licenses
UK Statistics Authority,Office For National Statistics,24/05/2019,"Ict Outsourcing, Maintenance And Support",It Operations,Scc,138240," 266,542.08 ", Cisco Smartnet Support,Large,Programme Exp
UK Statistics Authority,Office For National Statistics,24/05/2019,"Ict Outsourcing, Maintenance And Support",It Operations,Equiniti Limited,138241," 47,212.80 ", Information Management Services,Large,Programme Exp
UK Statistics Authority,Office For National Statistics,24/05/2019,Postage,Survey Processing Centre,DHL Parcel Ltd,138243," 72,050.97 ", Outgoing Postage,Large,Programme Exp
UK Statistics Authority,Office For National Statistics,24/05/2019,Exp - Purchase Of Goods/Services - Contractors,Programme Delivery,Certes Computing Ltd,138246," 11,529.00 ", Information Management Services ,SME,Programme Exp
UK Statistics Authority,Office For National Statistics,24/05/2019,Exp - Purchase Of Goods/Services - Contractors,Digital Delivery,Certes Computing Ltd,138246," 20,816.40 ", Information Management Services ,SME,Programme Exp
UK Statistics Authority,Office For National Statistics,24/05/2019,Exp - Purchase Of Goods/Services - Contractors,Digital Delivery,Certes Computing Ltd,138246," 27,669.60 ", Information Management Services ,SME,Programme Exp
UK Statistics Authority,Office For National Statistics,24/05/2019,Exp - Purchase Of Goods/Services - Contractors,Digital Delivery,Certes Computing Ltd,138246," 25,568.95 ", Information Management Services ,SME,Programme Exp
UK Statistics Authority,Office For National Statistics,24/05/2019,"Ict Outsourcing, Maintenance And Support",Tech Delivery Next Gen It And Infrastructure,Paramount Office Interiors Ltd,138248," 126,000.00 ", ONS Wifi Cabling,SME,Programme Exp
UK Statistics Authority,Office For National Statistics,24/05/2019,Exp - Short-Term Contract & Agency Staff - Full Cost,Census White Paper,Parity Resources Limited,138250, 452.16 , Information Management Services,Large,Programme Exp
UK Statistics Authority,Office For National Statistics,24/05/2019,Exp - Purchase Of Goods/Services - Contractors,Business Architecture,Parity Resources Limited,138250," 8,720.23 ", Information Management Services,Large,Programme Exp
UK Statistics Authority,Office For National Statistics,24/05/2019,Exp - Purchase Of Goods/Services - Contractors,Programme Delivery,Parity Resources Limited,138250," 17,862.19 ", Information Management Services,Large,Programme Exp
UK Statistics Authority,Office For National Statistics,24/05/2019,Exp - Purchase Of Goods/Services - Contractors,Digital Publishing,Parity Resources Limited,138250," 23,683.97 ", Information Management Services,Large,Programme Exp
UK Statistics Authority,Office For National Statistics,24/05/2019,Exp - Purchase Of Goods/Services - Contractors,Digital Publishing,Parity Resources Limited,138250," 2,050.56 ", Information Management Services,Large,Programme Exp
UK Statistics Authority,Office For National Statistics,24/05/2019,Exp - Purchase Of Goods And Services Consultants,Productivity Innovation Engagement And Research,Parity Resources Limited,138250," 3,377.59 ", Information Management Services,Large,Programme Exp
UK Statistics Authority,Office For National Statistics,24/05/2019,Exp - Short-Term Contract & Agency Staff - Full Cost,Strategy And Engagement,Parity Resources Limited,138250," 1,752.91 ", Information Management Services,Large,Programme Exp
UK Statistics Authority,Office For National Statistics,24/05/2019,Exp - Short-Term Contract & Agency Staff - Full Cost,Economic Statistics Architecture Business Change,Parity Resources Limited,138250," 2,112.33 ", Information Management Services,Large,Programme Exp
UK Statistics Authority,Office For National Statistics,24/05/2019,Exp - Short-Term Contract & Agency Staff - Full Cost,Ask Business Services,Parity Resources Limited,138250," 1,715.67 ", Information Management Services,Large,Programme Exp
UK Statistics Authority,Office For National Statistics,24/05/2019,Exp - Short-Term Contract & Agency Staff - Full Cost,Recruitment,Parity Resources Limited,138250," 2,073.49 ", Information Management Services,Large,Programme Exp
UK Statistics Authority,Office For National Statistics,24/05/2019,Exp - Purchase Of Goods/Services - Contractors,Security Advisory,Parity Resources Limited,138250," 10,765.44 ", Information Management Services,Large,Programme Exp
UK Statistics Authority,Office For National Statistics,24/05/2019,Exp - Short-Term Contract & Agency Staff - Full Cost,Health Analysis And Life Events,Parity Resources Limited,138250," 1,193.47 ", Information Management Services,Large,Programme Exp
UK Statistics Authority,Office For National Statistics,24/05/2019,Exp - Purchase Of Goods/Services - Contractors,Tech Delivery Legacy Sp,Parity Resources Limited,138250," 6,632.28 ", Information Management Services,Large,Programme Exp
UK Statistics Authority,Office For National Statistics,24/05/2019,Exp - Purchase Of Goods/Services - Contractors,It Operations,Parity Resources Limited,138250," 2,050.56 ", Information Management Services,Large,Programme Exp
UK Statistics Authority,Office For National Statistics,24/05/2019,Exp - Purchase Of Goods/Services - Contractors,Digital Delivery,Parity Resources Limited,138250," 10,776.96 ", Information Management Services,Large,Programme Exp
UK Statistics Authority,Office For National Statistics,24/05/2019,Exp - Purchase Of Goods/Services - Contractors,Digital Delivery,Parity Resources Limited,138250," 3,588.48 ", Information Management Services,Large,Programme Exp
UK Statistics Authority,Office For National Statistics,24/05/2019,Exp - Purchase Of Goods/Services - Contractors,Digital Delivery,Parity Resources Limited,138250," 3,588.48 ", Information Management Services,Large,Programme Exp
UK Statistics Authority,Office For National Statistics,24/05/2019,Exp - Purchase Of Goods/Services - It Contractual Services,Digital Delivery,Parity Resources Limited,138250," 2,883.60 ", Information Management Services,Large,Programme Exp
UK Statistics Authority,Office For National Statistics,24/05/2019,Exp - Purchase Of Goods/Services - Contractor Travel,Digital Delivery,Parity Resources Limited,138250, 72.48 , Information Management Services,Large,Programme Exp
UK Statistics Authority,Office For National Statistics,24/05/2019,Exp - Short-Term Contract & Agency Staff - Full Cost,Survey Processing Centre,Parity Resources Limited,138250," 4,241.82 ", Information Management Services,Large,Programme Exp
UK Statistics Authority,Office For National Statistics,24/05/2019,Exp - Purchase Of Goods/Services - Contractors,Business Outputs And Developments,Parity Resources Limited,138250," 2,242.80 ", Information Management Services,Large,Programme Exp
UK Statistics Authority,Office For National Statistics,24/05/2019,Exp - Purchase Of Goods/Services - It Contractual Services,Digital Publishing,Methods Business & Digital Technology Ltd,138257," 30,600.00 ", Information Management Services ,Large,Programme Exp
UK Statistics Authority,Office For National Statistics,24/05/2019,Exp - Purchase Of Goods/Services - It Contractual Services,Dst Reapportioning,Methods Business & Digital Technology Ltd,138257," 135,900.00 ", Information Management Services ,Large,Programme Exp
UK Statistics Authority,Office For National Statistics,24/05/2019,Other Goods And Services,Data Collection Service,Serco Ltd,138259," 152,634.44 ", Census Contact Centre Contract,Large,Programme Exp
UK Statistics Authority,Office For National Statistics,24/05/2019,Special Payments,Census Ccs Data Collection,Adecco UK Limited,138260," 102,000.00 "," Census Recruitment, Training and Payroll Services",SME,Programme Exp
UK Statistics Authority,Office For National Statistics,24/05/2019,Special Payments,Data Collection Service,HH Associates Ltd,138262," 36,000.00 ", Census Print and Post Out Contract,SME,Programme Exp
UK Statistics Authority,Office For National Statistics,28/05/2019,Exp - Purchase Of Goods/Services - Contractors,Data Architecture,La International,138273," 6,747.30 ", Information Management Services ,SME,Programme Exp
UK Statistics Authority,Office For National Statistics,28/05/2019,Exp - Purchase Of Goods/Services - Contractors,Strategy And Architecture,La International,138273," 1,601.94 ", Information Management Services ,SME,Programme Exp
UK Statistics Authority,Office For National Statistics,28/05/2019,Exp - Purchase Of Goods/Services - Contractors,Tech Delivery Srs,La International,138273," 6,100.12 ", Information Management Services ,SME,Programme Exp
UK Statistics Authority,Office For National Statistics,28/05/2019,Exp - Purchase Of Goods/Services - Contractors,It Applications,La International,138273," 2,716.50 ", Information Management Services ,SME,Programme Exp
UK Statistics Authority,Office For National Statistics,28/05/2019,Exp - Purchase Of Goods/Services - Contractors,Digital Delivery,La International,138273," 2,819.38 ", Information Management Services ,SME,Programme Exp
UK Statistics Authority,Office For National Statistics,28/05/2019,Exp - Purchase Of Goods/Services - Contractors,Digital Delivery,La International,138273," 6,458.94 ", Information Management Services ,SME,Programme Exp
UK Statistics Authority,Office For National Statistics,29/05/2019,Major Works Over 25K,Property Christchurch,Bruynzeel Storage Systems Ltd,138648," 111,000.00 ", Christchurch Racking Installation�,Large,Programme Exp
UK Statistics Authority,Office For National Statistics,08/05/2019,"Ict Outsourcing, Maintenance And Support",Ons Transactions,HM Revenue & Customs,30001356," 29,173.68 ", Additional VAT Liability,Large,Programme Exp
UK Statistics Authority,Office For National Statistics,16/05/2019,Electricity,Property Newport,Edf Energy,30001359," 28,247.15 ", Electricity Charges Titchfield,Large,Programme Exp
,,22/05/2019,Electricity,Property Titchfield,Edf Energy,30001365," 27,342.37 ", Electricity Charges Titchfield,Large,Programme Exp
